[Event "22nd ECCC Women 2017"]
[Site "Antalya"]
[Date "2017.10.09"]
[Round "1"]
[White "Brusilovski, Lena"]
[Black "Mammadova, Gulnar"]
[Result "0-1"]
[ECO "C13"]
[WhiteElo "1881"]
[BlackElo "2385"]
[Annotator "ChessBase"]
[PlyCount "66"]
[EventType "team-tourn"]
[EventCountry "TUR"]
[WhiteTeam "Beer Sheva"]
[BlackTeam "Odlar Yurdu"]
[TimeControl "40/5400+30:1800+30"]

1. e4 {[%emt 0:00:30]} e6 {[%emt 0:01:00]} 2. d4 {[%emt 0:01:30]} d5 {[%emt 0:00:00]} 3. Nc3 {[%emt 0:01:30]} Nf6 {[%emt 0:00:00]} 4. Bg5 {[%emt 0:00:30]} dxe4 {[%emt 0:00:30]} 5. Nxe4 {[%emt 0:00:30]} Be7 {[%emt 0:00:30]} 6. Bxf6 {[%emt 0:02:30]} gxf6 {[%emt 0:00:30]} 7. Nf3 {[%emt 0:02:30]} f5 {[%emt 0:00:30]} 8. Ng3 {[%emt 0:00:30]} c5 {[%emt 0:08:30]} 9. Bd3 {[%emt 0:04:30]} Nc6 {[%emt 0:02:30]} 10. dxc5 {[%emt 0:04:30]} Qa5+ {[%emt 0:01:30]} 11. c3 {[%emt 0:01:30]} Qxc5 {[%emt 0:01:30]} 12. Qe2 {[%emt 0:03:30]} Bd7 {[%emt 0:02:30]} 13. O-O {[%emt 0:04:30]} O-O-O {[%emt 0:04:30]} 14. Rfe1 {[%emt 0:07:30]} h5 {[%emt 0:03:30]} 15. Ne5 {[%emt 0:05:30]} Nxe5 {[%emt 0:03:30]} 16. Qxe5 {[%emt 0:00:30]} Qxe5 {[%emt 0:00:30]} 17. Rxe5 {[%emt 0:00:00]} Bf6 {[%emt 0:00:30]} 18. Re2 {[%emt 0:03:00]} Bc6 {[%emt 0:01:30]} 19. Bc4 {[%emt 0:01:30]} h4 {[%emt 0:03:30]} 20. Nf1 {[%emt 0:01:30]} f4 {[%emt 0:05:30]} 21. f3 {[%emt 0:02:30]} h3 {[%emt 0:01:30]} 22. Nd2 {[%emt 0:03:30]} Rhg8 {[%emt 0:02:30]} 23. Rf1 {[%emt 0:07:30]} Bh4 {[%emt 0:15:30]} 24. Ne4 {[%emt 0:06:30]} Rg7 {[%emt 0:06:30]} 25. Kh1 {[%emt 0:06:30]} Rdg8 {[%emt 0:01:30]} 26. gxh3 {[%emt 0:03:30]} Bxe4 {[%emt 0:01:30]} 27. fxe4 {[%emt 0:02:30]} f3 {[%emt 0:00:00]} 28. Rd2 {[%emt 0:01:30]} Bd8 {[%emt 0:02:00]} 29. h4 {[%emt 0:14:59]} Bb6 {[%emt 0:00:30]} 30. h3 {[%emt 0:00:10]} Rg1+ {[%emt 0:01:30]} 31. Rxg1 {[%emt 0:03:23]} Rxg1+ {[%emt 0:00:30]} 32. Kh2 {[%emt 0:00:22]} f2 {[%emt 0:00:30]} 33. e5 {[%emt 0:00:27]} Be3 {[%emt 0:00:00]} 0-1

[Event "22nd ECCC Women 2017"]
[Site "Antalya"]
[Date "2017.10.09"]
[Round "2"]
[White "Badelka, Olga"]
[Black "Sandu, Mihaela"]
[Result "1-0"]
[ECO "E70"]
[WhiteElo "2353"]
[BlackElo "2278"]
[Annotator "NA"]
[PlyCount "83"]
[EventType "team-tourn"]
[EventCountry "TUR"]
[SourceTitle "playchess.com"]
[Source "ChessBase"]
[SourceQuality "1"]
[WhiteTeam "Bossa Nova"]
[BlackTeam "Timisoara"]
[TimeControl "40/5400+30:1800+30"]

1. d4 {[%emt 0:00:30]} Nf6 {[%emt 0:01:00]} 2. c4 {[%emt 0:00:30]} g6 {[%emt 0:00:30]} 3. Nc3 {[%emt 0:00:00]} Bg7 {[%emt 0:00:30]} 4. e4 {[%emt 0:00:00]} d6 {[%emt 0:00:00]} 5. Nge2 {[%emt 0:00:00] LiveBook: 1153 Games} Nbd7 {[%emt 0:01:00]} 6. Ng3 {[%emt 0:01:00]} h5 {[%emt 0:01:30] E70: King's Indian: Miscellaneous lines with 4 e4, including 5 Nge2 and 5 Bd3 0-0 6 Nge2} (6... e5 7. d5 h5 8. Bg5 h4 9. Nge2 Nc5 10. f3 a5 11. Qd2 Bd7 12. Nc1 Qe7 13. Nd3 Nxd3+ 14. Bxd3 h3 {1-0 (46) Bologan,V (2640)-Saric,I (2652) Tallinn 2016}) 7. Be2 {[%emt 0:00:30]} a6 {[%emt 0:02:30]} 8. f4 $146 {[%emt 0:09:30]} ({Predecessor:} 8. h4 c5 9. Be3 Ng4 10. Bxg4 hxg4 11. h5 cxd4 12. Bxd4 Ne5 13. Nd5 Be6 14. Bb6 {½-½ (30) Vafiadis,K (2299)-Dochev,D (2404) Achaea 2012}) 8... h4 {[%emt 0:00:30]} 9. Nf1 {[%emt 0:00:00]} e5 {[%emt 0:10:30]} 10. fxe5 {[%emt 0:01:00]} dxe5 {[%emt 0:00:30]} 11. d5 {[%emt 0:00:30]} Nh5 {[%emt 0:02:30]} 12. g3 {[%emt 0:06:30]} Ndf6 {[%emt 0:06:30]} 13. Bg5 {[%emt 0:04:30]} Qd7 {[%emt 0:06:30]} 14. Qd3 {[%emt 0:16:30]} Qh3 {[%emt 0:12:30]} 15. Rg1 {[%emt 0:05:30]} hxg3 {[%emt 0:07:30]} 16. hxg3 {[%emt 0:00:30]} O-O {[%emt 0:00:30]} 17. O-O-O {[%emt 0:01:30]} Bg4 {[%emt 0:01:30]} 18. Bxg4 {[%emt 0:10:30]} Qxg4 {[%emt 0:00:30]} 19. Bd2 {[%emt 0:00:30]} Nf4 {[%emt 0:14:30]} 20. Qe3 {[%emt 0:01:30]} Nh3 {[%emt 0:00:30]} 21. Nh2 {[%emt 0:04:30]} Qd7 {[%emt 0:01:30]} 22. Rh1 {[%emt 0:00:30]} c5 {[%emt 0:03:30]} 23. Qe2 {[%emt 0:02:30]} b5 {[%emt 0:05:54]} 24. Be3 $14 {[%emt 0:03:30]} (24. Rde1 $18) 24... b4 {[%emt 0:00:33]} 25. Nb1 {[%emt 0:02:30]} Nxe4 {[%emt 0:00:29]} 26. Qg2 {[%emt 0:01:30]} Neg5 {[%emt 0:01:28]} 27. Nf3 {[%emt 0:03:30]} Qg4 {[%emt 0:00:31]} 28. Nxg5 {[%emt 0:03:30]} Nxg5 {[%emt 0:00:07]} 29. Nd2 {[%emt 0:00:30]} f5 {[%emt 0:03:48]} 30. Rh4 {[%emt 0:00:30]} Qxd1+ {[%emt 0:05:44]} 31. Kxd1 {[%emt 0:00:30]} Nf7 {[%emt 0:00:02]} 32. Bxc5 {[%emt 0:01:30]} Rfc8 {[%emt 0:00:04]} 33. Bxb4 {[%emt 0:02:17]} Rab8 {[%emt 0:03:42]} 34. Bc3 {[%emt 0:00:39]} a5 {[%emt 0:00:05]} 35. g4 {[%emt 0:00:05]} f4 {[%emt 0:00:29]} 36. Qe4 {[%emt 0:01:06]} Rb6 {[%emt 0:00:10]} 37. Bxa5 {[%emt 0:01:16]} Ra6 {[%emt 0:01:44]} 38. b4 {[%emt 0:01:31]} Re8 {[%emt 0:01:16]} 39. c5 {[%emt 0:00:25]} Rf6 {[%emt 0:01:36]} 40. d6 {[%emt 0:00:00]} f3 {[%emt 0:01:18]} 41. d7 {[%emt 0:01:11]} Rf8 {[%emt 0:00:30]} 42. Nxf3 {[%emt 0:01:30]} 1-0

[Event "22nd ECCC Women 2017"]
[Site "Antalya"]
[Date "2017.10.10"]
[Round "2"]
[White "Savina, Anastasia"]
[Black "Kovanova, Baira"]
[Result "1/2-1/2"]
[ECO "E48"]
[WhiteElo "2350"]
[BlackElo "2371"]
[Annotator "ChessBase"]
[PlyCount "83"]
[EventType "team-tourn"]
[EventCountry "TUR"]
[SourceTitle "playchess.com"]
[Source "ChessBase"]
[SourceQuality "1"]
[WhiteTeam "Legacy Square Capital"]
[BlackTeam "UGRA"]
[TimeControl "40/5400+30:1800+30"]

1. d4 {[%emt 0:00:30]} Nf6 {[%emt 0:01:00]} 2. c4 {[%emt 0:00:30]} e6 {[%emt 0:00:00]} 3. Nc3 {[%emt 0:00:00]} Bb4 {[%emt 0:00:00]} 4. e3 {[%emt 0:00:00]} O-O {[%emt 0:00:30]} 5. Bd3 {[%emt 0:00:00]} d5 {[%emt 0:00:00]} 6. Nge2 {[%emt 0:03:00]} c5 {[%emt 0:01:00]} 7. cxd5 {[%emt 0:00:30]} cxd4 {[%emt 0:01:30]} 8. exd4 {[%emt 0:00:30]} exd5 {[%emt 0:01:30]} 9. O-O {[%emt 0:03:30]} h6 {[%emt 0:01:30]} 10. Nf4 {[%emt 0:06:30]} Nc6 {[%emt 0:04:30]} 11. Bc2 {[%emt 0:03:30]} Ba5 {[%emt 0:04:30]} 12. a3 {[%emt 0:06:30]} Bb6 {[%emt 0:04:30]} 13. Be3 {[%emt 0:06:30]} Ne7 {[%emt 0:07:30]} 14. h3 {[%emt 0:16:30]} Bf5 {[%emt 0:05:30]} 15. Bb3 {[%emt 0:04:30]} Qd6 {[%emt 0:08:30]} 16. Rc1 {[%emt 0:06:30]} a6 {[%emt 0:02:30]} 17. Nfe2 {[%emt 0:15:30]} Ng6 {[%emt 0:11:30]} 18. Ng3 {[%emt 0:01:30]} Be6 {[%emt 0:02:30]} 19. Bc2 {[%emt 0:03:48]} Bc7 {[%emt 0:06:30]} 20. f4 {[%emt 0:06:36]} Rae8 {[%emt 0:03:30]} 21. Qf3 {[%emt 0:04:54]} Bd7 {[%emt 0:02:30]} 22. Bd3 {[%emt 0:03:00]} Re7 {[%emt 0:03:30]} 23. Nce2 {[%emt 0:02:03]} Nh4 {[%emt 0:10:29]} 24. Qf2 {[%emt 0:00:25]} Rfe8 {[%emt 0:04:37]} 25. Bd2 {[%emt 0:00:22]} a5 {[%emt 0:01:28]} 26. Rxc7 {[%emt 0:05:16]} Qxc7 {[%emt 0:00:55]} 27. f5 {[%emt 0:00:12]} Nxf5 {[%emt 0:04:22]} 28. Nxf5 {[%emt 0:00:52]} Bxf5 {[%emt 0:00:03]} 29. Qxf5 {[%emt 0:00:17]} Rxe2 {[%emt 0:00:06]} 30. Bxe2 {[%emt 0:00:30]} Rxe2 {[%emt 0:00:05]} 31. Rc1 {[%emt 0:00:42]} Qg3 {[%emt 0:04:54]} 32. Rc8+ {[%emt 0:00:30]} Ne8 {[%emt 0:00:05]} 33. Qxd5 {[%emt 0:00:00]} Rxd2 {[%emt 0:00:34]} 34. Rxe8+ {[%emt 0:00:24]} Kh7 {[%emt 0:00:02]} 35. Qf5+ {[%emt 0:01:24]} Qg6 {[%emt 0:00:05]} 36. Qxg6+ {[%emt 0:00:12]} Kxg6 {[%emt 0:00:05]} 37. Re5 {[%emt 0:00:28]} Rxb2 {[%emt 0:03:06]} 38. Rxa5 {[%emt 0:00:01]} f5 {[%emt 0:00:27]} 39. d5 {[%emt 0:00:50]} Kf6 {[%emt 0:00:46]} 40. d6 {[%emt 0:00:00]} Rd2 {[%emt 0:01:51]} 41. Rb5 {[%emt 0:05:44]} Rxd6 {[%emt 0:01:30]} 42. Rxb7 {[%emt 0:00:30]} 1/2-1/2

[Event "22nd ECCC Women 2017"]
[Site "Antalya"]
[Date "2017.10.09"]
[Round "2"]
[White "Cosma, Elena-Luminita"]
[Black "Zaiatz, Elena"]
[Result "1/2-1/2"]
[ECO "D02"]
[WhiteElo "2333"]
[BlackElo "2334"]
[Annotator "NA"]
[PlyCount "60"]
[EventType "team-tourn"]
[EventCountry "TUR"]
[SourceTitle "playchess.com"]
[Source "ChessBase"]
[SourceQuality "1"]
[WhiteTeam "Timisoara"]
[BlackTeam "Bossa Nova"]
[TimeControl "40/5400+30:1800+30"]

1. d4 {[%emt 0:00:30]} Nf6 {[%emt 0:01:00]} 2. Nf3 {[%emt 0:00:00]} g6 {[%emt 0:00:30]} 3. Nbd2 {[%emt 0:02:00]} d5 {[%emt 0:00:30]} 4. e3 {[%emt 0:00:30]} Bg7 {[%emt 0:00:00]} 5. b4 {[%emt 0:01:30]} O-O {[%emt 0:06:00]} 6. Be2 {[%emt 0:02:30]} Nfd7 {[%emt 0:09:30]} 7. c4 {[%emt 0:08:30]} e5 {[%emt 0:25:30]} 8. O-O {[%emt 0:05:30]} e4 {[%emt 0:08:30]} 9. Ne1 {[%emt 0:00:30]} c6 {[%emt 0:00:30]} 10. Qb3 {[%emt 0:05:30]} a5 {[%emt 0:04:30]} 11. a4 $15 {[%emt 0:11:30]} ({Better is} 11. b5 $11) 11... axb4 {[%emt 0:13:30]} 12. cxd5 {[%emt 0:03:30]} Nc5 {[%emt 0:01:30]} 13. Qb1 {[%emt 0:07:30]} Nxa4 {[%emt 0:05:30]} 14. Qxb4 {[%emt 0:01:30]} b5 {[%emt 0:00:30]} 15. Nxe4 {[%emt 0:07:30]} Na6 {[%emt 0:01:15]} 16. Qd2 {[%emt 0:02:30]} Re8 {[%emt 0:04:47]} 17. Ng3 {[%emt 0:04:30]} Qxd5 {[%emt 0:00:46]} 18. Nd3 {[%emt 0:05:30]} Qd7 {[%emt 0:02:05]} 19. Ba3 {[%emt 0:04:30]} c5 {[%emt 0:01:10]} 20. Bxc5 {[%emt 0:05:33]} Bb7 {[%emt 0:00:07]} 21. Rac1 {[%emt 0:01:17]} h5 {[%emt 0:00:31]} 22. Bf3 {[%emt 0:06:10]} Bxf3 {[%emt 0:02:43]} 23. gxf3 {[%emt 0:00:30]} h4 {[%emt 0:00:00]} 24. Ne4 {[%emt 0:00:59]} Rxe4 {[%emt 0:02:33]} 25. fxe4 {[%emt 0:02:13]} N6xc5 {[%emt 0:02:43]} 26. dxc5 {[%emt 0:01:45]} Qg4+ {[%emt 0:00:45]} 27. Kh1 {[%emt 0:00:30]} Qf3+ {[%emt 0:00:00]} 28. Kg1 {[%emt 0:00:00]} Qg4+ {[%emt 0:00:00]} 29. Kh1 {[%emt 0:00:17]} Qf3+ {[%emt 0:00:25]} 30. Kg1 {[%emt 0:00:00]} Qg4+ {[%emt 0:00:28]} 1/2-1/2

[Event "22nd ECCC Women 2017"]
[Site "Antalya"]
[Date "2017.10.09"]
[Round "2"]
[White "Klinova, Masha"]
[Black "Yildiz, Betul Cemre"]
[Result "1/2-1/2"]
[ECO "C68"]
[WhiteElo "2289"]
[BlackElo "2350"]
[Annotator "NA"]
[PlyCount "72"]
[EventType "team-tourn"]
[EventCountry "TUR"]
[SourceTitle "playchess.com"]
[Source "ChessBase"]
[SourceQuality "1"]
[WhiteTeam "Beer Sheva"]
[BlackTeam "Anatolia"]
[TimeControl "40/5400+30:1800+30"]

1. e4 e5 2. Nf3 Nc6 3. Bb5 a6 4. Bxc6 dxc6 5. d4 exd4 {[%emt 0:02:00]} 6. Qxd4 {[%emt 0:02:00]} Qxd4 {[%emt 0:03:30]} 7. Nxd4 {[%emt 0:00:30]} Bd7 {[%emt 0:00:30]} 8. Nc3 {[%emt 0:00:30]} O-O-O {[%emt 0:01:30]} 9. Be3 {[%emt 0:02:30]} Bb4 {[%emt 0:04:30]} 10. Nde2 {[%emt 0:11:30]} Re8 {[%emt 0:11:30]} 11. O-O-O {[%emt 0:06:30]} f5 {[%emt 0:07:30]} 12. Bd4 {[%emt 0:14:30] LiveBook: 4 Games} Nf6 {[%emt 0:10:30]} 13. e5 {[%emt 0:09:30]} Ng4 {[%emt 0:00:30]} 14. f4 {[%emt 0:03:30]} Rhg8 {[%emt 0:00:30]} 15. h3 {[%emt 0:01:30]} Nh6 {[%emt 0:00:30]} 16. Be3 $11 {[%emt 0:06:30]} g5 {[%emt 0:06:30]} 17. g3 {[%emt 0:07:30]} Nf7 {[%emt 0:05:30]} 18. Rhg1 {[%emt 0:01:30]} Nd8 {[%emt 0:04:30]} 19. a3 {[%emt 0:02:30]} Bf8 {[%emt 0:08:30]} 20. Nd4 {[%emt 0:02:30]} Bh6 {[%emt 0:02:30]} 21. Bd2 {[%emt 0:11:18]} Rg6 {[%emt 0:09:30]} 22. Rde1 {[%emt 0:07:19]} gxf4 {[%emt 0:05:55]} 23. gxf4 {[%emt 0:01:08]} Reg8 {[%emt 0:00:24]} 24. Rxg6 {[%emt 0:02:39]} Rxg6 {[%emt 0:00:21]} 25. Nce2 {[%emt 0:02:50]} Be6 {[%emt 0:10:14]} 26. Rg1 {[%emt 0:01:26]} c5 {[%emt 0:02:09]} 27. Nxe6 {[%emt 0:01:37]} Nxe6 {[%emt 0:02:06]} 28. Rxg6 {[%emt 0:00:47]} hxg6 {[%emt 0:00:30]} 29. c4 {[%emt 0:00:30]} Kd7 {[%emt 0:00:30]} 30. Kc2 {[%emt 0:00:30]} c6 {[%emt 0:00:30]} 31. Kd3 {[%emt 0:00:30]} b5 {[%emt 0:00:30]} 32. b3 {[%emt 0:00:30]} Nd8 {[%emt 0:00:30]} 33. Be3 {[%emt 0:00:30]} Ne6 {[%emt 0:02:30]} 34. Bd2 {[%emt 0:00:00]} Nd8 {[%emt 0:00:51]} 35. Be3 {[%emt 0:00:00]} Ne6 {[%emt 0:00:48]} 36. Bd2 {[%emt 0:00:00]} Nd8 {[%emt 0:00:08]} 1/2-1/2

[Event "22nd ECCC Women 2017"]
[Site "Antalya"]
[Date "2017.10.11"]
[Round "2"]
[White "Stetsko, Lanita"]
[Black "Dragomirescu, Angela"]
[Result "1/2-1/2"]
[ECO "B01"]
[WhiteElo "2254"]
[BlackElo "2231"]
[Annotator "ChessBase"]
[PlyCount "134"]
[EventType "team-tourn"]
[EventCountry "TUR"]
[WhiteTeam "Bossa Nova"]
[BlackTeam "Timisoara"]
[TimeControl "40/5400+30:1800+30"]

1. e4 {[%emt 0:00:30]} d5 {[%emt 0:01:00]} 2. exd5 {[%emt 0:00:30]} Qxd5 {[%emt 0:00:00]} 3. Nc3 {[%emt 0:00:00]} Qd6 {[%emt 0:00:00]} 4. d4 {[%emt 0:03:00]} Nf6 {[%emt 0:01:30]} 5. Nf3 {[%emt 0:00:30]} c6 {[%emt 0:01:30]} 6. h3 {[%emt 0:07:30]} Bf5 {[%emt 0:03:30]} 7. Bc4 {[%emt 0:01:30]} Nbd7 {[%emt 0:08:30]} 8. O-O {[%emt 0:15:30]} e6 {[%emt 0:24:30]} 9. Bb3 {[%emt 0:18:30]} Be7 {[%emt 0:02:30]} 10. Ne2 {[%emt 0:00:30]} h6 {[%emt 0:08:30]} 11. Bf4 {[%emt 0:04:30]} Qb4 {[%emt 0:01:30]} 12. c4 {[%emt 0:05:30]} O-O {[%emt 0:00:30]} 13. Ng3 {[%emt 0:05:30]} Bh7 {[%emt 0:01:30]} 14. Re1 {[%emt 0:01:30]} Rfe8 {[%emt 0:01:30]} 15. Bc7 {[%emt 0:06:30]} Bd8 {[%emt 0:03:30]} 16. a3 {[%emt 0:00:00]} Qf8 {[%emt 0:01:30]} 17. Bf4 {[%emt 0:03:00]} Rc8 {[%emt 0:11:30]} 18. Ne5 {[%emt 0:02:30]} Ba5 {[%emt 0:07:24]} 19. Re2 {[%emt 0:02:37]} Red8 {[%emt 0:01:44]} 20. Bc2 {[%emt 0:02:15]} Bb6 {[%emt 0:08:08]} 21. Bxh7+ {[%emt 0:01:09]} Nxh7 {[%emt 0:01:15]} 22. Rd2 {[%emt 0:00:31]} Nhf6 {[%emt 0:02:55]} 23. Qf3 {[%emt 0:01:26]} Nxe5 {[%emt 0:01:23]} 24. dxe5 {[%emt 0:06:18]} Rxd2 {[%emt 0:00:36]} 25. Bxd2 {[%emt 0:00:03]} Nd7 {[%emt 0:00:59]} 26. Bc3 {[%emt 0:01:13]} Bc7 {[%emt 0:02:38]} 27. Re1 {[%emt 0:01:05]} Rd8 {[%emt 0:00:38]} 28. Qg4 {[%emt 0:01:19]} Kh8 {[%emt 0:01:17]} 29. Nh5 {[%emt 0:03:07]} a5 {[%emt 0:00:24]} 30. Rd1 {[%emt 0:01:51]} g6 {[%emt 0:02:29]} 31. Ng3 {[%emt 0:00:22]} Nc5 {[%emt 0:00:33]} 32. Rxd8 {[%emt 0:05:07]} Qxd8 {[%emt 0:00:30]} 33. Qf4 {[%emt 0:00:06]} Kg7 {[%emt 0:00:35]} 34. Bd2 {[%emt 0:00:26]} Qg5 {[%emt 0:00:27]} 35. Qxg5 {[%emt 0:01:00]} hxg5 {[%emt 0:00:01]} 36. b4 {[%emt 0:00:30]} axb4 {[%emt 0:00:40]} 37. axb4 {[%emt 0:00:02]} Nd3 {[%emt 0:00:00]} 38. Bxg5 {[%emt 0:00:44]} Nxb4 {[%emt 0:01:19]} 39. Bf6+ {[%emt 0:01:03]} Kf8 {[%emt 0:00:03]} 40. Ne2 {[%emt 0:00:00]} Nd3 {[%emt 0:01:32]} 41. f4 {[%emt 0:07:16]} Bb6+ {[%emt 0:03:30]} 42. Kh2 {[%emt 0:04:30]} Nb2 {[%emt 0:00:30]} 43. g4 {[%emt 0:00:30]} Nxc4 {[%emt 0:00:30]} 44. h4 {[%emt 0:00:00]} Ne3 {[%emt 0:12:36]} 45. Kg3 {[%emt 0:01:38]} Nd5 {[%emt 0:01:13]} 46. Bg5 {[%emt 0:00:10]} Kg7 {[%emt 0:08:24]} 47. h5 {[%emt 0:04:19]} gxh5 {[%emt 0:00:30]} 48. gxh5 {[%emt 0:00:00]} Bc5 {[%emt 0:00:21]} 49. Kf3 {[%emt 0:02:41]} b5 {[%emt 0:01:30]} 50. f5 {[%emt 0:03:35]} exf5 {[%emt 0:03:24]} 51. Ng3 {[%emt 0:00:16]} f4 {[%emt 0:00:15]} 52. Nf5+ {[%emt 0:06:38]} Kh7 {[%emt 0:00:07]} 53. Bxf4 {[%emt 0:00:55]} b4 {[%emt 0:01:59]} 54. Bc1 {[%emt 0:00:45]} Nc3 {[%emt 0:01:10]} 55. Nd6 {[%emt 0:01:07]} Kg8 {[%emt 0:00:45]} 56. h6 {[%emt 0:00:44]} Bd4 {[%emt 0:00:31]} 57. h7+ {[%emt 0:03:06]} Kxh7 {[%emt 0:00:30]} 58. Nxf7 {[%emt 0:00:00]} Kg6 {[%emt 0:00:44]} 59. e6 {[%emt 0:00:37]} Nd5 {[%emt 0:00:24]} 60. Ke4 {[%emt 0:00:39]} Bf6 {[%emt 0:00:22]} 61. Ne5+ {[%emt 0:01:23]} Bxe5 {[%emt 0:00:20]} 62. Kxe5 {[%emt 0:00:00]} b3 {[%emt 0:00:47]} 63. Kd6 {[%emt 0:00:00]} Kf5 {[%emt 0:00:36]} 64. Kxc6 {[%emt 0:00:47]} Kxe6 {[%emt 0:00:08]} 65. Kc5 {[%emt 0:00:05]} Nf4 {[%emt 0:00:27]} 66. Kc4 {[%emt 0:00:10]} Ne2 {[%emt 0:00:51]} 67. Kxb3 {[%emt 0:00:41]} Ke5 {[%emt 0:00:11]} 1/2-1/2

[Event "22nd ECCC Women 2017"]
[Site "Antalya"]
[Date "2017.10.09"]
[Round "2"]
[White "Isgandarova, Khayala"]
[Black "Brusilovski, Lena"]
[Result "1/2-1/2"]
[ECO "B55"]
[WhiteElo "2242"]
[BlackElo "1881"]
[Annotator "NA"]
[PlyCount "89"]
[EventType "team-tourn"]
[EventCountry "TUR"]
[SourceTitle "playchess.com"]
[Source "ChessBase"]
[SourceQuality "1"]
[WhiteTeam "Anatolia"]
[BlackTeam "Beer Sheva"]
[TimeControl "40/5400+30:1800+30"]

1. e4 c5 2. Nf3 d6 3. d4 cxd4 4. Nxd4 {[%emt 0:01:00]} Nf6 {[%emt 0:03:30]} 5. f3 {[%emt 0:00:00]} Nc6 {[%emt 0:01:30]} 6. c4 {[%emt 0:05:00]} a6 {[%emt 0:03:30]} 7. Nc3 {[%emt 0:00:30] B55: Sicilian: 2...d6 3 d4 cxd4 4 Nxd4 Nf6 5 f3} e6 {[%emt 0:05:30]} (7... g6 8. Be3 Bg7 9. Qd2 O-O 10. Be2 Bd7 11. O-O Ne8 12. Rfd1 Nxd4 13. Bxd4 Bxd4+ 14. Qxd4 Nc7 15. Qb6 Ne6 16. Nd5 Qxb6+ 17. Nxb6 Rad8 18. e5 Bc6 19. exd6 Rxd6 20. Rxd6 exd6 {½-½ (59) Drazic,S (2422)-Belous,M (2191) Krakow 2015}) 8. Nc2 {[%emt 0:03:30]} Qc7 {[%emt 0:03:30]} 9. Be3 {[%emt 0:03:30]} Ne5 {[%emt 0:04:30]} 10. Qd4 {[%emt 0:07:30]} Be7 {[%emt 0:02:30]} 11. Be2 {[%emt 0:00:30]} Bd7 {[%emt 0:02:30]} 12. Rc1 {[%emt 0:02:30]} Rc8 {[%emt 0:01:30]} 13. Na3 {[%emt 0:02:30]} O-O {[%emt 0:02:30]} 14. O-O {[%emt 0:00:00]} Rfd8 $146 {[%emt 0:01:30]} ({Predecessor:} 14... Bc6 15. b4 Rfd8 16. Nd5 exd5 17. cxd5 Qb8 18. dxc6 Nxc6 19. Qb6 Nd7 {0-1 (19) Schlensker,P-Niephaus,W Bad Nauheim 1948}) 15. Rfd1 {[%emt 0:08:00]} Be8 {[%emt 0:04:30]} 16. Qd2 {[%emt 0:05:30]} Nfd7 {[%emt 0:02:30]} 17. f4 {[%emt 0:05:30]} Nc6 {[%emt 0:01:30]} 18. Bf1 {[%emt 0:15:30]} Nc5 {[%emt 0:04:30]} 19. Qf2 {[%emt 0:02:30]} b6 {[%emt 0:01:30]} 20. Nab1 {[%emt 0:02:30]} Nb8 {[%emt 0:06:30]} 21. b4 {[%emt 0:01:30]} Ncd7 {[%emt 0:01:30]} 22. Na4 {[%emt 0:07:30]} Nc5 {[%emt 0:01:30]} 23. bxc5 {[%emt 0:01:30]} Bxa4 {[%emt 0:00:00]} 24. cxd6 {[%emt 0:02:30]} Bxd6 {[%emt 0:02:00]} 25. Bxb6 {[%emt 0:03:30]} Qc6 {[%emt 0:00:30]} 26. Rd2 {[%emt 0:00:56]} Nd7 {[%emt 0:02:30] [#]} 27. Rxd6 $1 {[%emt 0:02:53]} Qxd6 $16 {[%emt 0:00:30]} 28. Bxd8 {[%emt 0:01:00]} Rxd8 {[%emt 0:00:00]} 29. c5 {[%emt 0:02:15]} Qc6 {[%emt 0:01:00]} 30. Qd4 {[%emt 0:06:37]} Rc8 {[%emt 0:01:30]} 31. Kh1 {[%emt 0:03:23]} Nxc5 {[%emt 0:02:30]} 32. Nd2 {[%emt 0:00:22]} h6 {[%emt 0:08:30]} 33. Nf3 {[%emt 0:04:33]} Bb5 {[%emt 0:04:30]} 34. Ne5 {[%emt 0:01:03]} Qe8 {[%emt 0:03:30]} 35. Bxb5 {[%emt 0:00:35]} Qxb5 {[%emt 0:01:30]} 36. Nd3 {[%emt 0:00:43]} Nxd3 {[%emt 0:00:30]} 37. Rxc8+ {[%emt 0:00:06]} Kh7 {[%emt 0:00:00]} 38. g3 {[%emt 0:01:23]} Qb1+ {[%emt 0:00:00]} 39. Kg2 {[%emt 0:00:00]} Qxa2+ {[%emt 0:00:30]} 40. Kg1 {[%emt 0:00:00]} Qe2 {[%emt 0:01:30]} 41. Rd8 {[%emt 0:09:11]} Ne1 {[%emt 0:00:30]} 42. Qf2 {[%emt 0:00:30]} Nf3+ {[%emt 0:00:30]} 43. Kg2 {[%emt 0:00:00]} Ne1+ {[%emt 0:00:30]} 44. Kg1 {[%emt 0:00:00]} Nf3+ {[%emt 0:00:30]} 45. Kg2 {[%emt 0:00:30]} 1/2-1/2